[Event "Titled Tuesday Blitz January 03 Early 2023"]
[White "rhinobritos"]
[Black "Mei, Austin"]
[BlackFideId "30948479"]
[WhiteElo "2994"]
[BlackElo "2218"]
[Result "1/2-1/2"]
[Round "01"]
[TimeControl "180+2"]
[Date "2023.01.03"]
[WhiteClock "0:00:20"]
[BlackClock "0:00:18"]

1. d4 {[%clk 0:02:45]}  Nf6 {[%clk 0:02:58]} 2. Nf3 {[%clk 0:02:39]}  d5 {[%clk 0:02:54]} 3. Bf4 {[%clk 0:02:39]}  g6 {[%clk 0:02:45]} 4. e3 {[%clk 0:02:35]}  Bg7 {[%clk 0:02:45]} 5. h3 {[%clk 0:02:36]}  O-O {[%clk 0:02:44]} 6. Be2 {[%clk 0:02:30]}  c5 {[%clk 0:02:44]} 7. c3 {[%clk 0:02:29]}  b6 {[%clk 0:02:40]} 8. Kf1 {[%clk 0:02:28]}  Bb7 {[%clk 0:02:40]} 9. Nbd2 {[%clk 0:02:29]}  Nc6 {[%clk 0:02:35]} 10. Ne5 {[%clk 0:02:29]}  Nd7 {[%clk 0:02:34]} 11. Nxd7 {[%clk 0:02:16]}  Qxd7 {[%clk 0:02:32]} 12. Nf3 {[%clk 0:02:17]}  f6 {[%clk 0:02:27]} 13. Qb3 {[%clk 0:01:55]}  c4 {[%clk 0:02:22]} 14. Qc2 {[%clk 0:01:52]}  e5 {[%clk 0:02:22]} 15. Bg3 {[%clk 0:01:50]}  e4 {[%clk 0:02:16]} 16. Nd2 {[%clk 0:01:42]}  b5 {[%clk 0:02:13]} 17. h4 {[%clk 0:01:34]}  h6 {[%clk 0:02:09]} 18. f3 {[%clk 0:01:23]}  f5 {[%clk 0:02:09]} 19. f4 {[%clk 0:01:21]}  h5 {[%clk 0:01:58]} 20. Kg1 {[%clk 0:01:12]}  Rfc8 {[%clk 0:01:41]} 21. Kh2 {[%clk 0:01:11]}  Nd8 {[%clk 0:01:16]} 22. b3 {[%clk 0:01:08]}  Ne6 {[%clk 0:01:13]} 23. bxc4 {[%clk 0:01:07]}  bxc4 {[%clk 0:01:14]} 24. Rhb1 {[%clk 0:01:07]}  Bc6 {[%clk 0:01:14]} 25. Rb2 {[%clk 0:01:05]}  Rab8 {[%clk 0:01:03]} 26. Rab1 {[%clk 0:01:05]}  Qc7 {[%clk 0:00:58]} 27. Kh1 {[%clk 0:00:50]}  Kh7 {[%clk 0:00:56]} 28. Bf2 {[%clk 0:00:46]}  Rb6 {[%clk 0:00:53]} 29. Nf1 {[%clk 0:00:45]}  Rcb8 {[%clk 0:00:52]} 30. Ng3 {[%clk 0:00:46]}  Rxb2 {[%clk 0:00:31]} 31. Rxb2 {[%clk 0:00:45]}  Rxb2 {[%clk 0:00:32]} 32. Qxb2 {[%clk 0:00:46]}  Qb6 {[%clk 0:00:33]} 33. Qa3 {[%clk 0:00:38]}  Bf8 {[%clk 0:00:32]} 34. Qc1 {[%clk 0:00:38]}  Qa5 {[%clk 0:00:30]} 35. Qd2 {[%clk 0:00:34]}  Ng7 {[%clk 0:00:26]} 36. Bf1 {[%clk 0:00:32]}  Ba3 {[%clk 0:00:21]} 37. Ne2 {[%clk 0:00:32]}  Qb5 {[%clk 0:00:20]} 38. Ng1 {[%clk 0:00:26]}  Qb2 {[%clk 0:00:19]} 39. Be1 {[%clk 0:00:26]}  Qxd2 {[%clk 0:00:19]} 40. Bxd2 {[%clk 0:00:27]}  a5 {[%clk 0:00:19]} 41. Nh3 {[%clk 0:00:27]}  Ne6 {[%clk 0:00:19]} 42. Kg1 {[%clk 0:00:23]}  Kg7 {[%clk 0:00:19]} 43. Kf2 {[%clk 0:00:23]}  Kf7 {[%clk 0:00:20]} 44. Be2 {[%clk 0:00:23]}  Ke7 {[%clk 0:00:19]} 45. Bd1 {[%clk 0:00:23]}  Bb2 {[%clk 0:00:19]} 46. Ke2 {[%clk 0:00:20]}  Nc7 {[%clk 0:00:18]} 47. a4 {[%clk 0:00:18]}  Ne6 {[%clk 0:00:17]} 48. Ng5 {[%clk 0:00:18]}  Nxg5 {[%clk 0:00:17]} 49. hxg5 {[%clk 0:00:19]}  Ba3 {[%clk 0:00:17]} 50. Bc2 {[%clk 0:00:19]}  Bd6 {[%clk 0:00:17]} 51. Kd1 {[%clk 0:00:19]}  Kf7 {[%clk 0:00:17]} 52. Kc1 {[%clk 0:00:19]}  Bc7 {[%clk 0:00:17]} 53. Kb1 {[%clk 0:00:19]}  Bd6 {[%clk 0:00:17]} 54. Ka2 {[%clk 0:00:20]}  Ke6 {[%clk 0:00:18]} 1/2-1/2


[Site "https://www.chess.com"]

[Event "Titled Tuesday Blitz January 03 Early 2023"]
[White "Ozdemir, Serhan Berat"]
[Black "Paravyan, David"]
[WhiteFideId "6374611"]
[BlackFideId "4194985"]
[WhiteElo "2223"]
[BlackElo "2601"]
[Result "0-1"]
[Round "01"]
[TimeControl "180+2"]
[Date "2023.01.03"]
[WhiteClock "0:00:02"]
[BlackClock "0:00:03"]

1. e4 {[%clk 0:02:59]}  e5 {[%clk 0:03:00]} 2. Nf3 {[%clk 0:02:59]}  Nf6 {[%clk 0:03:00]} 3. Nxe5 {[%clk 0:02:52]}  d6 {[%clk 0:03:01]} 4. Nf3 {[%clk 0:02:48]}  Nxe4 {[%clk 0:03:00]} 5. d4 {[%clk 0:02:46]}  d5 {[%clk 0:02:59]} 6. Bd3 {[%clk 0:02:37]}  Bd6 {[%clk 0:02:59]} 7. Nbd2 {[%clk 0:02:31]}  Bf5 {[%clk 0:02:58]} 8. O-O {[%clk 0:02:26]}  O-O {[%clk 0:02:58]} 9. Re1 {[%clk 0:01:53]}  Re8 {[%clk 0:02:59]} 10. Nf1 {[%clk 0:01:44]}  c6 {[%clk 0:02:56]} 11. c3 {[%clk 0:01:41]}  Nd7 {[%clk 0:02:55]} 12. Ng3 {[%clk 0:01:41]}  Nxg3 {[%clk 0:02:52]} 13. hxg3 {[%clk 0:01:41]}  Bxd3 {[%clk 0:02:50]} 14. Qxd3 {[%clk 0:01:41]}  Rxe1+ {[%clk 0:02:50]} 15. Nxe1 {[%clk 0:01:42]}  Qf6 {[%clk 0:02:45]} 16. Nf3 {[%clk 0:01:36]}  Re8 {[%clk 0:02:41]} 17. Bg5 {[%clk 0:01:35]}  Qg6 {[%clk 0:02:42]} 18. Qxg6 {[%clk 0:01:34]}  hxg6 {[%clk 0:02:43]} 19. Re1 {[%clk 0:01:34]}  Rxe1+ {[%clk 0:02:42]} 20. Nxe1 {[%clk 0:01:35]}  Nf8 {[%clk 0:02:39]} 21. Nd3 {[%clk 0:01:31]}  Ne6 {[%clk 0:02:39]} 22. Bf4 {[%clk 0:01:31]}  Nxf4 {[%clk 0:02:29]} 23. gxf4 {[%clk 0:01:31]}  f6 {[%clk 0:02:23]} 24. g4 {[%clk 0:01:18]}  Kf7 {[%clk 0:02:23]} 25. f5 {[%clk 0:01:14]}  gxf5 {[%clk 0:02:19]} 26. gxf5 {[%clk 0:01:15]}  g6 {[%clk 0:02:18]} 27. fxg6+ {[%clk 0:01:16]}  Kxg6 {[%clk 0:02:18]} 28. Kg2 {[%clk 0:01:17]}  Kf5 {[%clk 0:02:17]} 29. Kf3 {[%clk 0:01:17]}  a5 {[%clk 0:01:57]} 30. a4 {[%clk 0:01:05]}  b5 {[%clk 0:01:42]} 31. axb5 {[%clk 0:00:55]}  cxb5 {[%clk 0:01:42]} 32. Ne1 {[%clk 0:00:37]}  a4 {[%clk 0:01:26]} 33. Nc2 {[%clk 0:00:33]}  Bf8 {[%clk 0:01:16]} 34. Ne1 {[%clk 0:00:10]}  Bh6 {[%clk 0:00:26]} 35. Ke2 {[%clk 0:00:07]}  Bc1 {[%clk 0:00:25]} 36. Nd3 {[%clk 0:00:08]}  Bh6 {[%clk 0:00:18]} 37. Nb4 {[%clk 0:00:08]}  Ke6 {[%clk 0:00:17]} 38. Nd3 {[%clk 0:00:06]}  Bf8 {[%clk 0:00:15]} 39. Nf4+ {[%clk 0:00:05]}  Kd6 {[%clk 0:00:15]} 40. Nd3 {[%clk 0:00:06]}  Kc6 {[%clk 0:00:13]} 41. Kf3 {[%clk 0:00:06]}  b4 {[%clk 0:00:09]} 42. cxb4 {[%clk 0:00:05]}  Kb5 {[%clk 0:00:09]} 43. Kf4 {[%clk 0:00:04]}  Kc4 {[%clk 0:00:06]} 44. Ke3 {[%clk 0:00:02]}  Bxb4 {[%clk 0:00:05]} 45. Nf4 {[%clk 0:00:02]}  Bd6 {[%clk 0:00:04]} 46. Nd3 {[%clk 0:00:01]}  Kb3 {[%clk 0:00:04]} 47. Kd2 {[%clk 0:00:01]}  Bf8 {[%clk 0:00:05]} 48. Ke2 {[%clk 0:00:01]}  Bh6 {[%clk 0:00:05]} 49. Nc5+ {[%clk 0:00:01]}  Kb4 {[%clk 0:00:04]} 50. Nd3+ {[%clk 0:00:02]}  Kc4 {[%clk 0:00:05]} 51. Nc5 {[%clk 0:00:01]}  Kxd4 {[%clk 0:00:05]} 52. Nxa4 {[%clk 0:00:02]}  Bf8 {[%clk 0:00:05]} 53. Nc3 {[%clk 0:00:02]}  Kc4 {[%clk 0:00:06]} 54. Nd1 {[%clk 0:00:02]}  d4 {[%clk 0:00:06]} 55. Kd2 {[%clk 0:00:02]}  Bh6+ {[%clk 0:00:06]} 56. Ke2 {[%clk 0:00:01]}  d3+ {[%clk 0:00:06]} 57. Kf3 {[%clk 0:00:02]}  Bc1 {[%clk 0:00:06]} 58. Ne3+ {[%clk 0:00:02]}  Kd4 {[%clk 0:00:04]} 59. Nd1 {[%clk 0:00:02]}  f5 {[%clk 0:00:04]} 60. Kg2 {[%clk 0:00:01]}  Kc4 {[%clk 0:00:04]} 61. Kf3 {[%clk 0:00:02]}  Kb3 {[%clk 0:00:05]} 62. Ne3 {[%clk 0:00:02]}  Kxb2 {[%clk 0:00:04]} 63. Nxf5 {[%clk 0:00:02]}  Bg5 {[%clk 0:00:03]} 64. Nd4 {[%clk 0:00:02]}  Kc3 {[%clk 0:00:02]} 65. Ne2+ {[%clk 0:00:01]}  Kc2 {[%clk 0:00:02]} 66. Nd4+ {[%clk 0:00:01]}  Kb2 {[%clk 0:00:03]} 67. Ne2 {[%clk 0:00:02]}  d2 {[%clk 0:00:03]} 0-1


[Site "https://www.chess.com"]

[Event "Titled Tuesday Blitz January 03 Early 2023"]
[White "Bluebaum, Matthias"]
[Black "Tomaszewski, Kacper"]
[WhiteFideId "24651516"]
[BlackFideId "1127373"]
[WhiteElo "2669"]
[BlackElo "2313"]
[Result "1-0"]
[Round "01"]
[TimeControl "180+2"]
[Date "2023.01.03"]
[WhiteClock "0:01:19"]
[BlackClock "0:00:50"]

1. d4 {[%clk 0:03:00]}  d5 {[%clk 0:02:59]} 2. c4 {[%clk 0:02:59]}  e6 {[%clk 0:02:59]} 3. Nc3 {[%clk 0:02:59]}  Nf6 {[%clk 0:02:59]} 4. cxd5 {[%clk 0:02:59]}  Nxd5 {[%clk 0:02:59]} 5. e4 {[%clk 0:02:59]}  Nxc3 {[%clk 0:02:59]} 6. bxc3 {[%clk 0:03:00]}  c5 {[%clk 0:02:59]} 7. Rb1 {[%clk 0:03:01]}  Be7 {[%clk 0:02:54]} 8. Bc4 {[%clk 0:03:01]}  O-O {[%clk 0:02:53]} 9. Ne2 {[%clk 0:03:01]}  a6 {[%clk 0:02:53]} 10. a4 {[%clk 0:03:01]}  Qc7 {[%clk 0:02:46]} 11. Bf4 {[%clk 0:02:59]}  Bd6 {[%clk 0:02:40]} 12. Bxd6 {[%clk 0:02:58]}  Qxd6 {[%clk 0:02:40]} 13. O-O {[%clk 0:02:59]}  cxd4 {[%clk 0:02:38]} 14. cxd4 {[%clk 0:02:59]}  Nd7 {[%clk 0:02:35]} 15. Ng3 {[%clk 0:02:55]}  Rd8 {[%clk 0:02:33]} 16. e5 {[%clk 0:02:49]}  Qe7 {[%clk 0:02:23]} 17. Qg4 {[%clk 0:02:43]}  Nf8 {[%clk 0:02:19]} 18. h4 {[%clk 0:02:32]}  Ng6 {[%clk 0:02:10]} 19. h5 {[%clk 0:02:24]}  Qh4 {[%clk 0:02:10]} 20. Qxh4 {[%clk 0:02:14]}  Nxh4 {[%clk 0:02:11]} 21. Rfd1 {[%clk 0:02:14]}  Bd7 {[%clk 0:01:54]} 22. a5 {[%clk 0:02:14]}  Bc6 {[%clk 0:01:54]} 23. f3 {[%clk 0:02:14]}  g5 {[%clk 0:01:45]} 24. Ne4 {[%clk 0:02:08]}  h6 {[%clk 0:01:32]} 25. d5 {[%clk 0:02:08]}  exd5 {[%clk 0:01:27]} 26. Bxd5 {[%clk 0:02:07]}  Bxd5 {[%clk 0:01:17]} 27. Nf6+ {[%clk 0:01:51]}  Kg7 {[%clk 0:01:17]} 28. Nxd5 {[%clk 0:01:52]}  Rac8 {[%clk 0:01:08]} 29. Ne3 {[%clk 0:01:17]}  Rxd1+ {[%clk 0:01:06]} 30. Rxd1 {[%clk 0:01:18]}  Rc5 {[%clk 0:01:05]} 31. e6 {[%clk 0:01:18]}  fxe6 {[%clk 0:01:03]} 32. Rd7+ {[%clk 0:01:19]}  Kf6 {[%clk 0:00:55]} 33. Ng4+ {[%clk 0:01:18]}  Kf5 {[%clk 0:00:50]} 34. Rf7# {[%clk 0:01:19]} 1-0


[Site "https://www.chess.com"]

[Event "Titled Tuesday Blitz January 03 Early 2023"]
[White "Martic, Ivan"]
[Black "Sjugirov, Sanan"]
[WhiteFideId "929301"]
[BlackFideId "4189302"]
[WhiteElo "2301"]
[BlackElo "2712"]
[Result "0-1"]
[Round "01"]
[TimeControl "180+2"]
[Date "2023.01.03"]
[WhiteClock "0:02:50"]
[BlackClock "0:02:54"]

1. e4 {[%clk 0:03:00]}  c6 {[%clk 0:02:59]} 2. d4 {[%clk 0:02:59]}  d5 {[%clk 0:03:00]} 3. Nd2 {[%clk 0:02:59]}  dxe4 {[%clk 0:03:00]} 4. Nxe4 {[%clk 0:03:00]}  Nf6 {[%clk 0:03:01]} 5. Nxf6+ {[%clk 0:03:00]}  exf6 {[%clk 0:03:01]} 6. c3 {[%clk 0:03:00]}  Bd6 {[%clk 0:03:02]} 7. Bd3 {[%clk 0:02:59]}  O-O {[%clk 0:03:02]} 8. Qc2 {[%clk 0:03:00]}  Re8+ {[%clk 0:03:01]} 9. Ne2 {[%clk 0:03:00]}  h6 {[%clk 0:03:02]} 10. Bd2 {[%clk 0:02:52]}  Be6 {[%clk 0:02:55]} 11. O-O {[%clk 0:02:50]}  Qc7 {[%clk 0:02:54]} 0-1


[Site "https://www.chess.com"]

[Event "Titled Tuesday Blitz January 03 Early 2023"]
[White "Keymer, Vincent"]
[Black "Padmini, Rout"]
[WhiteFideId "12940690"]
[BlackFideId "5029295"]
[WhiteElo "2700"]
[BlackElo "2375"]
[Result "1-0"]
[Round "01"]
[TimeControl "180+2"]
[Date "2023.01.03"]
[WhiteClock "0:01:17"]
[BlackClock "0:00:01"]

1. a3 {[%clk 0:02:57]}  e5 {[%clk 0:02:58]} 2. c4 {[%clk 0:02:57]}  Nc6 {[%clk 0:02:58]} 3. d3 {[%clk 0:02:56]}  f5 {[%clk 0:02:58]} 4. b4 {[%clk 0:02:55]}  Nf6 {[%clk 0:02:59]} 5. Bb2 {[%clk 0:02:55]}  d6 {[%clk 0:02:59]} 6. g3 {[%clk 0:02:54]}  Be7 {[%clk 0:02:59]} 7. Bg2 {[%clk 0:02:54]}  O-O {[%clk 0:02:59]} 8. Nc3 {[%clk 0:02:54]}  a5 {[%clk 0:02:56]} 9. b5 {[%clk 0:02:54]}  Nb8 {[%clk 0:02:56]} 10. e3 {[%clk 0:02:53]}  Nbd7 {[%clk 0:02:54]} 11. Nge2 {[%clk 0:02:53]}  Nb6 {[%clk 0:02:41]} 12. O-O {[%clk 0:02:52]}  Qe8 {[%clk 0:02:39]} 13. Rc1 {[%clk 0:02:43]}  Qh5 {[%clk 0:02:38]} 14. Qd2 {[%clk 0:02:22]}  Ng4 {[%clk 0:02:25]} 15. h3 {[%clk 0:02:22]}  Nf6 {[%clk 0:02:25]} 16. f4 {[%clk 0:02:22]}  g5 {[%clk 0:02:18]} 17. c5 {[%clk 0:02:06]}  Nbd7 {[%clk 0:02:13]} 18. Nd5 {[%clk 0:02:04]}  Nxd5 {[%clk 0:02:08]} 19. Bxd5+ {[%clk 0:02:05]}  Kh8 {[%clk 0:02:08]} 20. fxe5 {[%clk 0:01:55]}  Nxe5 {[%clk 0:01:54]} 21. cxd6 {[%clk 0:01:44]}  cxd6 {[%clk 0:01:53]} 22. Bg2 {[%clk 0:01:41]}  Bf6 {[%clk 0:01:31]} 23. Nd4 {[%clk 0:01:40]}  Bg7 {[%clk 0:01:25]} 24. Rc7 {[%clk 0:01:38]}  Bd7 {[%clk 0:00:55]} 25. Rxb7 {[%clk 0:01:32]}  Rae8 {[%clk 0:00:53]} 26. Nc6 {[%clk 0:01:26]}  Bxc6 {[%clk 0:00:34]} 27. bxc6 {[%clk 0:01:26]}  Bf6 {[%clk 0:00:09]} 28. Rxf5 {[%clk 0:01:24]}  Qg6 {[%clk 0:00:04]} 29. Qf2 {[%clk 0:01:19]}  Bg7 {[%clk 0:00:01]} 30. Be4 {[%clk 0:01:17]} 1-0


[Site "https://www.chess.com"]

[Event "Titled Tuesday Blitz January 03 Early 2023"]
[White "Dominguez Perez, Leinier"]
[Black "Murtazin, Ruslan"]
[WhiteFideId "3503240"]
[BlackFideId "24175960"]
[WhiteElo "2739"]
[BlackElo "2247"]
[Result "1-0"]
[Round "01"]
[TimeControl "180+2"]
[Date "2023.01.03"]
[WhiteClock "0:00:53"]
[BlackClock "0:00:04"]

1. e4 {[%clk 0:03:00]}  e6 {[%clk 0:02:59]} 2. d4 {[%clk 0:03:00]}  d5 {[%clk 0:03:00]} 3. Nc3 {[%clk 0:03:00]}  Nf6 {[%clk 0:03:00]} 4. e5 {[%clk 0:03:01]}  Nfd7 {[%clk 0:03:00]} 5. f4 {[%clk 0:03:01]}  c5 {[%clk 0:03:01]} 6. Nf3 {[%clk 0:03:01]}  Nc6 {[%clk 0:03:01]} 7. Be3 {[%clk 0:03:02]}  cxd4 {[%clk 0:03:02]} 8. Nxd4 {[%clk 0:03:02]}  Bc5 {[%clk 0:03:03]} 9. Qd2 {[%clk 0:03:01]}  a6 {[%clk 0:03:02]} 10. O-O-O {[%clk 0:02:59]}  O-O {[%clk 0:03:02]} 11. Qf2 {[%clk 0:02:58]}  Qe7 {[%clk 0:03:02]} 12. Kb1 {[%clk 0:02:44]}  Nxd4 {[%clk 0:03:00]} 13. Bxd4 {[%clk 0:02:44]}  b5 {[%clk 0:03:01]} 14. Bd3 {[%clk 0:02:42]}  b4 {[%clk 0:02:49]} 15. Ne2 {[%clk 0:02:23]}  a5 {[%clk 0:02:49]} 16. Bb5 {[%clk 0:02:11]}  Bxd4 {[%clk 0:02:05]} 17. Nxd4 {[%clk 0:02:11]}  Nb8 {[%clk 0:01:43]} 18. Rhe1 {[%clk 0:02:10]}  Bd7 {[%clk 0:01:00]} 19. f5 {[%clk 0:02:10]}  exf5 {[%clk 0:00:56]} 20. Nxf5 {[%clk 0:02:08]}  Qe6 {[%clk 0:00:56]} 21. Nd4 {[%clk 0:01:58]}  Qb6 {[%clk 0:00:46]} 22. Qe2 {[%clk 0:01:44]}  Re8 {[%clk 0:00:26]} 23. Qd3 {[%clk 0:01:18]}  g6 {[%clk 0:00:23]} 24. h4 {[%clk 0:01:11]}  h5 {[%clk 0:00:23]} 25. e6 {[%clk 0:01:07]}  Bxb5 {[%clk 0:00:19]} 26. exf7+ {[%clk 0:01:06]}  Kxf7 {[%clk 0:00:19]} 27. Nxb5 {[%clk 0:01:06]}  Rd8 {[%clk 0:00:06]} 28. Nd4 {[%clk 0:00:55]}  Nd7 {[%clk 0:00:04]} 29. Re6 {[%clk 0:00:53]} 1-0


[Site "https://www.chess.com"]

[Event "Titled Tuesday Blitz January 03 Early 2023"]
[White "Bazarov, Konstantin"]
[Black "Shimanov, Aleksandr"]
[WhiteFideId "4137000"]
[BlackFideId "4198603"]
[WhiteElo "2235"]
[BlackElo "2581"]
[Result "0-1"]
[Round "01"]
[TimeControl "180+2"]
[Date "2023.01.03"]
[WhiteClock "0:01:36"]
[BlackClock "0:01:57"]

1. c4 {[%clk 0:02:56]}  g6 {[%clk 0:02:39]} 2. d4 {[%clk 0:02:54]}  Bg7 {[%clk 0:02:39]} 3. e4 {[%clk 0:02:54]}  d6 {[%clk 0:02:39]} 4. h3 {[%clk 0:02:53]}  c5 {[%clk 0:02:36]} 5. d5 {[%clk 0:02:51]}  e6 {[%clk 0:02:33]} 6. Nf3 {[%clk 0:02:50]}  Qe7 {[%clk 0:02:28]} 7. Be2 {[%clk 0:02:49]}  Nd7 {[%clk 0:02:25]} 8. O-O {[%clk 0:02:48]}  h6 {[%clk 0:02:22]} 9. dxe6 {[%clk 0:02:45]}  fxe6 {[%clk 0:02:22]} 10. Nc3 {[%clk 0:02:44]}  Bxc3 {[%clk 0:02:21]} 11. bxc3 {[%clk 0:02:43]}  e5 {[%clk 0:02:20]} 12. Nh2 {[%clk 0:02:39]}  Ngf6 {[%clk 0:02:20]} 13. Qc2 {[%clk 0:02:38]}  b6 {[%clk 0:02:17]} 14. f4 {[%clk 0:02:38]}  Bb7 {[%clk 0:02:17]} 15. Bd3 {[%clk 0:02:36]}  O-O-O {[%clk 0:02:17]} 16. f5 {[%clk 0:02:33]}  Rdg8 {[%clk 0:02:14]} 17. a4 {[%clk 0:02:27]}  a5 {[%clk 0:02:13]} 18. Rb1 {[%clk 0:02:24]}  gxf5 {[%clk 0:02:08]} 19. Rxf5 {[%clk 0:02:23]}  Rg6 {[%clk 0:02:09]} 20. Be3 {[%clk 0:02:07]}  Rhg8 {[%clk 0:02:08]} 21. Rf2 {[%clk 0:02:07]}  Rg3 {[%clk 0:02:07]} 22. Re1 {[%clk 0:02:02]}  Rxh3 {[%clk 0:02:04]} 23. Nf1 {[%clk 0:02:01]}  Ng4 {[%clk 0:02:01]} 24. Rfe2 {[%clk 0:02:00]}  Qh4 {[%clk 0:01:59]} 25. gxh3 {[%clk 0:01:39]}  Nxe3+ {[%clk 0:01:58]} 26. Rg2 {[%clk 0:01:38]}  Rxg2+ {[%clk 0:01:56]} 27. Qxg2 {[%clk 0:01:36]}  Nxg2 {[%clk 0:01:57]} 0-1


[Site "https://www.chess.com"]

[Event "Titled Tuesday Blitz January 03 Early 2023"]
[White "Chigaev, Maksim"]
[Black "Gavilan Diaz, Mario"]
[WhiteFideId "4108116"]
[BlackFideId "2260905"]
[WhiteElo "2628"]
[BlackElo "2271"]
[Result "1-0"]
[Round "01"]
[TimeControl "180+2"]
[Date "2023.01.03"]
[WhiteClock "0:00:28"]
[BlackClock "0:00:02"]

1. e4 {[%clk 0:02:58]}  e6 {[%clk 0:02:59]} 2. d4 {[%clk 0:02:57]}  d5 {[%clk 0:03:00]} 3. Nd2 {[%clk 0:02:58]}  c5 {[%clk 0:02:59]} 4. Ngf3 {[%clk 0:02:58]}  Nc6 {[%clk 0:02:57]} 5. exd5 {[%clk 0:02:57]}  Qxd5 {[%clk 0:02:57]} 6. Bc4 {[%clk 0:02:56]}  Qd8 {[%clk 0:02:51]} 7. dxc5 {[%clk 0:02:56]}  Bxc5 {[%clk 0:02:50]} 8. O-O {[%clk 0:02:46]}  Nf6 {[%clk 0:02:50]} 9. Nb3 {[%clk 0:02:46]}  Qxd1 {[%clk 0:02:45]} 10. Rxd1 {[%clk 0:02:47]}  Be7 {[%clk 0:02:45]} 11. Nbd4 {[%clk 0:02:38]}  Nxd4 {[%clk 0:02:43]} 12. Rxd4 {[%clk 0:02:37]}  O-O {[%clk 0:02:40]} 13. Bg5 {[%clk 0:02:35]}  b6 {[%clk 0:02:33]} 14. Ne5 {[%clk 0:02:32]}  Bb7 {[%clk 0:02:30]} 15. Rad1 {[%clk 0:02:29]}  Rfd8 {[%clk 0:02:22]} 16. Nd7 {[%clk 0:02:20]}  Rxd7 {[%clk 0:01:58]} 17. Rxd7 {[%clk 0:02:18]}  Nxd7 {[%clk 0:01:58]} 18. Bxe7 {[%clk 0:02:12]}  Ne5 {[%clk 0:01:58]} 19. Be2 {[%clk 0:02:09]}  f6 {[%clk 0:01:33]} 20. h3 {[%clk 0:02:01]}  Kf7 {[%clk 0:01:32]} 21. Bd6 {[%clk 0:02:01]}  Nc6 {[%clk 0:01:29]} 22. Bc7 {[%clk 0:02:01]}  Ke7 {[%clk 0:01:24]} 23. Bf3 {[%clk 0:01:46]}  Rc8 {[%clk 0:01:21]} 24. Bd6+ {[%clk 0:01:47]}  Kf7 {[%clk 0:01:21]} 25. Ba3 {[%clk 0:01:47]}  Rd8 {[%clk 0:01:16]} 26. Rxd8 {[%clk 0:01:39]}  Nxd8 {[%clk 0:01:17]} 27. Bxb7 {[%clk 0:01:23]}  Nxb7 {[%clk 0:01:18]} 28. Kf1 {[%clk 0:01:24]}  e5 {[%clk 0:01:13]} 29. Ke2 {[%clk 0:01:18]}  f5 {[%clk 0:01:10]} 30. Kd3 {[%clk 0:01:18]}  Ke6 {[%clk 0:01:10]} 31. Kc4 {[%clk 0:01:18]}  a6 {[%clk 0:01:05]} 32. Bf8 {[%clk 0:01:18]}  g6 {[%clk 0:01:04]} 33. a3 {[%clk 0:01:18]}  Na5+ {[%clk 0:01:01]} 34. Kd3 {[%clk 0:01:15]}  Nc6 {[%clk 0:01:00]} 35. c4 {[%clk 0:01:10]}  e4+ {[%clk 0:00:56]} 36. Ke3 {[%clk 0:01:05]}  Ne5 {[%clk 0:00:47]} 37. b3 {[%clk 0:01:03]}  Nd3 {[%clk 0:00:40]} 38. Bg7 {[%clk 0:00:58]}  b5 {[%clk 0:00:30]} 39. f3 {[%clk 0:00:52]}  Nc1 {[%clk 0:00:26]} 40. cxb5 {[%clk 0:00:31]}  axb5 {[%clk 0:00:27]} 41. a4 {[%clk 0:00:31]}  bxa4 {[%clk 0:00:20]} 42. bxa4 {[%clk 0:00:32]}  exf3 {[%clk 0:00:20]} 43. gxf3 {[%clk 0:00:32]}  Nb3 {[%clk 0:00:20]} 44. h4 {[%clk 0:00:29]}  Kd5 {[%clk 0:00:18]} 45. Bc3 {[%clk 0:00:29]}  Kc4 {[%clk 0:00:18]} 46. Be1 {[%clk 0:00:29]}  Nc5 {[%clk 0:00:16]} 47. a5 {[%clk 0:00:30]}  Kb5 {[%clk 0:00:17]} 48. Kd4 {[%clk 0:00:28]}  Nd7 {[%clk 0:00:15]} 49. Kd5 {[%clk 0:00:28]}  Nf6+ {[%clk 0:00:15]} 50. Ke6 {[%clk 0:00:28]}  Nh5 {[%clk 0:00:13]} 51. Bd2 {[%clk 0:00:26]}  Ng3 {[%clk 0:00:11]} 52. Kf7 {[%clk 0:00:24]}  Nf1 {[%clk 0:00:11]} 53. Bf4 {[%clk 0:00:25]}  Kxa5 {[%clk 0:00:10]} 54. Kg7 {[%clk 0:00:26]}  Kb5 {[%clk 0:00:08]} 55. Kxh7 {[%clk 0:00:26]}  Kc4 {[%clk 0:00:07]} 56. Kxg6 {[%clk 0:00:26]}  Kd3 {[%clk 0:00:02]} 57. Kxf5 {[%clk 0:00:27]}  Ke2 {[%clk 0:00:02]} 58. h5 {[%clk 0:00:28]}  Kxf3 {[%clk 0:00:02]} 59. h6 {[%clk 0:00:28]} 1-0


[Site "https://www.chess.com"]